fUST/lending_fUST_20250924
["ID","MTS","AMOUNT","RATE_DAILY","PERIOD"]
[387223143,1758660648079,-3616.44454299,0.00024187,2]
[387223145,1758660648088,-760.0,0.00024188,2]
[387223146,1758660648097,-909.44981074,0.00024211,2]
[387223148,1758660648107,-666.66666667,0.00024223,21]
[387223150,1758660648116,-666.66666667,0.00024223,21]
[387223152,1758660648126,-6917.06,0.00024225,2]
[387223154,1758660648135,-500.0,0.00024231,2]
[387223156,1758660648144,-500.83297951,0.00024249,2]
[387223158,1758660648154,-666.66666667,0.00024361,21]
[387223160,1758660648164,-666.66666667,0.00024361,21]
[387223162,1758660648179,-666.66666667,0.00024361,21]
[387223164,1758660648188,-666.66666667,0.00024361,21]
[387223166,1758660648197,-2043.19,0.00024383,2]
[387223168,1758660648207,-913.34,0.00024383,2]
[387223170,1758660648217,-480.0,0.00024383,2]
[387223172,1758660648227,-511.32,0.00024383,2]
[387223174,1758660648236,-336100.0,0.0002444,2]
[387223176,1758660648246,-666.66666667,0.00024499,21]
[387223187,1758660648346,-666.66666667,0.00024499,21]
[387223189,1758660648356,-663.40573052,0.000245,2]
[387223191,1758660648366,-1387.28087207,0.00024604,2]
[387223193,1758660648375,-112164.0250814,0.0002465,2]
[387223389,1758661226672,180.243859,0.00027397,120]
[387223390,1758661591781,713.7277911,0.00029224,120]
[387223456,1758661832369,-186.0,0.00019068,3]
[387223458,1758661832378,-300.0,0.00019177,2]
[387223460,1758661832387,-480.0,0.00019178,2]
[387223462,1758661832396,-480.0,0.00019178,2]
[387223464,1758661832405,-480.0,0.00019178,2]
[387223466,1758661832415,-480.0,0.00019178,2]
[387223468,1758661832424,-480.0,0.00019178,2]
[387223470,1758661832433,-480.0,0.00019178,2]
[387223472,1758661832443,-333.99339596,0.00019178,2]
[387223474,1758661832453,-601.91936783,0.00019178,2]
[387223476,1758661832462,-480.0,0.00019178,2]
[387223478,1758661832471,-480.0,0.00019178,2]
[387223480,1758661832480,-480.0,0.00019178,2]
[387223482,1758661832489,-480.0,0.00019178,2]
[387223484,1758661832498,-480.0,0.00019178,2]
[387223486,1758661832508,-480.0,0.00019178,2]
[387223488,1758661832517,-480.0,0.00019178,2]
[387223490,1758661832527,-480.0,0.00019178,2]
[387223492,1758661832536,-480.0,0.00019178,2]
[387223494,1758661832545,-480.0,0.00019178,2]
[387223496,1758661832554,-480.0,0.00019178,2]
[387223498,1758661832563,-480.0,0.00019178,2]
[387223500,1758661832576,-490.02124937,0.00019178,2]
[387223502,1758661832585,-480.0,0.00019178,2]
[387223504,1758661832594,-480.0,0.00019178,2]
[387223506,1758661832603,-480.0,0.00019178,2]
[387223508,1758661832615,-480.0,0.00019178,2]
[387223510,1758661832624,-480.0,0.00019178,2]
[387223512,1758661832634,-480.0,0.00019178,2]
[387223514,1758661832644,-482.26189202,0.00019178,2]
[387223516,1758661832659,-480.0,0.00019178,2]
[387223518,1758661832669,-480.0,0.00019178,2]
[387223520,1758661832679,-480.0,0.00019178,2]
[387223522,1758661832690,-480.0,0.00019178,2]
[387223524,1758661832700,-480.0,0.00019178,2]
[387223526,1758661832710,-474.35121908,0.00019178,2]
[387223528,1758661832719,-488.62,0.00019178,2]
[387223530,1758661832728,-480.0,0.00019178,2]
[387223532,1758661832739,-480.0,0.00019178,2]
[387223534,1758661832748,-480.0,0.00019178,2]
[387223536,1758661832757,-157.46813858,0.00019351,2]
[387223538,1758661832766,-480.0,0.00019451,2]
[387223540,1758661832776,-480.0,0.00019451,2]
[387223542,1758661832785,-480.0,0.00019452,2]
[387223544,1758661832795,-480.0,0.00019452,2]
[387223546,1758661832804,-480.0,0.00019452,2]
[387223548,1758661832813,-480.0,0.00019452,2]
[387223550,1758661832823,-416.28,0.00019452,2]
[387223552,1758661832833,-480.0,0.00019452,2]
[387223554,1758661832842,-480.0,0.00019452,2]
[387223556,1758661832852,-480.0,0.00019452,2]
[387223558,1758661832862,-480.0,0.00019452,2]
[387223560,1758661832871,-480.0,0.00019452,2]
[387223562,1758661832880,-169.14,0.00019452,2]
[387223564,1758661832890,-480.0,0.00019452,2]
[387223566,1758661832899,-488.62,0.00019452,2]
[387223568,1758661832909,-480.0,0.00019452,2]
[387223570,1758661832918,-480.0,0.00019452,2]
[387223572,1758661832927,-497.97888243,0.00019725,2]
[387223574,1758661832936,-480.0,0.00019725,2]
[387223576,1758661832946,-381.07828763,0.00019725,2]
[387223578,1758661832956,-480.0,0.00019725,2]
[387223580,1758661832966,-189.16532654,0.00019725,2]
[387223582,1758661832975,-480.0,0.00019725,2]
[387223584,1758661832984,-480.0,0.00019726,2]
[387223586,1758661832993,-480.0,0.00019726,2]
[387223588,1758661833002,-480.0,0.00019726,2]
[387223590,1758661833011,-480.0,0.00019726,2]
[387223592,1758661833021,-187.26,0.00019726,2]
[387223594,1758661833031,-480.0,0.00019726,2]
[387223596,1758661833041,-518.55,0.00019726,2]
[387223598,1758661833050,-480.0,0.00019726,2]
[387223600,1758661833063,-480.0,0.00019726,2]
[387223601,1758661833072,-480.0,0.00019726,2]
[387223603,1758661833082,-488.62,0.00019726,2]
[387223605,1758661833092,-226.64,0.00019726,2]
[387223607,1758661833101,-480.0,0.00019726,2]
[387223609,1758661833111,-2719.70798375,0.000199,2]
[387223611,1758661833120,-363.04,0.00019999,2]
[387223613,1758661833130,-150.119,0.0002,2]
[387223615,1758661833139,-480.0,0.0002,2]
[387223617,1758661833149,-480.0,0.0002,2]
[387223619,1758661833158,-480.0,0.0002,2]
[387223621,1758661833168,-480.0,0.0002,2]
[387223623,1758661833177,-480.0,0.0002,2]
[387223625,1758661833187,-480.0,0.0002,2]
[387223627,1758661833197,-488.62,0.0002,2]
[387223629,1758661833207,-480.0,0.0002,2]
[387223631,1758661833216,-233.58652103,0.00020179,2]
[387223633,1758661833225,-417.15472785,0.00020179,2]
[387223635,1758661833235,-160.0,0.00020179,2]
[387223637,1758661833245,-160.0,0.00020179,2]
[387223639,1758661833254,-480.0,0.00020273,2]
[387223641,1758661833264,-480.0,0.00020273,2]
[387223643,1758661833274,-480.0,0.00020273,2]
[387223645,1758661833283,-480.0,0.00020273,2]
[387223647,1758661833293,-488.62,0.00020273,2]
[387223649,1758661833302,-480.0,0.00020273,2]
[387223651,1758661833311,-2129.62,0.00020499,2]
[387223653,1758661833321,-480.0,0.00020547,2]
[387223655,1758661833331,-480.0,0.00020547,2]
[387223657,1758661833340,-480.0,0.00020547,2]
[387223659,1758661833350,-480.0,0.00020547,2]
[387223661,1758661833359,-488.62,0.00020547,2]
[387223663,1758661833369,-487.20000001,0.00020821,2]
[387223665,1758661833378,-480.0,0.00020821,2]
[387223667,1758661833387,-480.0,0.00020821,2]
[387223669,1758661833397,-480.0,0.00020821,2]
[387223670,1758661833406,-488.62,0.00020821,2]
[387223672,1758661833415,-420.0,0.00020899,2]
[387223674,1758661833425,-1732.0785099,0.00020972,2]
[387223677,1758661833442,-625.52142659,0.00020498,2]
[387223678,1758661833451,-906.58565764,0.00020972,2]
[387223821,1758661838360,-410.0,0.00020054,2]
[387223822,1758661838370,-480.0,0.00020547,2]
[387223823,1758661838380,-480.0,0.00020821,2]
[387223824,1758661838390,-81.04381604,0.00020972,2]
[387223825,1758661838400,-150.0,0.00021,2]
[387223826,1758661838409,-465.59890521,0.00021095,2]
[387223827,1758661838419,-480.0,0.00021095,2]
[387223828,1758661838428,-480.0,0.00021095,2]
[387223829,1758661838438,-488.62,0.00021095,2]
[387223830,1758661838448,-480.0,0.00021095,2]
[387223831,1758661838457,-157.46813858,0.00021358,2]
[387223832,1758661838467,-480.0,0.00021369,2]
[387223833,1758661838476,-480.0,0.00021369,2]
[387223834,1758661838486,-139.32810788,0.00021369,2]
[387223835,1758661838501,-349.29189212,0.00021369,2]
[387223836,1758661838514,-480.0,0.00021369,2]
[387223837,1758661838524,-480.0,0.00021643,2]
[387223838,1758661838533,-480.0,0.00021643,2]
[387223840,1758661838543,-488.62,0.00021643,2]
[387223842,1758661838552,-480.0,0.00021643,2]
[387223844,1758661838562,-465.95893401,0.00021917,2]
[387223846,1758661838572,-480.0,0.00021917,2]
[387223848,1758661838586,-488.62,0.00021917,2]
[387223850,1758661838595,-282.74922622,0.00021917,2]
[387223852,1758661838605,-358.96,0.00022,2]
[387223854,1758661838615,-426.90797394,0.00022044,2]
[387224010,1758661840228,-160.0,0.00020179,2]
[387224012,1758661840238,-2292.80000964,0.00022044,2]
[387224014,1758661840248,-480.0,0.00022191,2]
[387224017,1758661840258,-488.62,0.00022191,2]
[387224019,1758661840268,-4259.23,0.00022361,2]
[387224020,1758661840278,-480.0,0.00022465,2]
[387224022,1758661840287,-488.62,0.00022465,2]
[387224024,1758661840298,-480.0,0.00022739,2]
[387224027,1758661840307,-488.62,0.00022739,2]
[387224028,1758661840317,-163.0,0.0002274,2]
[387224031,1758661840327,-151.0,0.0002274,2]
[387224033,1758661840336,-151.0,0.0002274,2]
[387224034,1758661840346,-151.0,0.0002274,2]
[387224037,1758661840355,-500.0,0.0002274,2]
[387224039,1758661840365,-151.0,0.0002274,2]
[387224041,1758661840374,-151.0,0.0002274,2]
[387224043,1758661840384,-151.0,0.0002274,2]
[387224045,1758661840393,-151.0,0.0002274,2]
[387224047,1758661840403,-194.11698866,0.0002274,2]
[387224049,1758661840413,-151.0,0.0002274,2]
[387224051,1758661840423,-151.0,0.0002274,2]
[387224052,1758661840434,-281.70302615,0.0002274,2]
[387224054,1758661840443,-151.0,0.0002274,2]
[387224056,1758661840453,-151.0,0.0002274,2]
[387224058,1758661840462,-151.0,0.0002274,2]
[387224060,1758661840471,-151.0,0.0002274,2]
[387224062,1758661840480,-151.30050291,0.0002274,2]
[387224064,1758661840490,-151.0,0.0002274,2]
[387224066,1758661840499,-151.0,0.0002274,2]
[387224068,1758661840509,-151.0,0.0002274,2]
[387224070,1758661840518,-151.0,0.0002274,2]
[387224072,1758661840527,-151.0,0.0002274,2]
[387224074,1758661840537,-151.0,0.0002274,2]
[387224076,1758661840546,-151.0,0.0002274,2]
[387224078,1758661840555,-151.0,0.0002274,2]
[387224080,1758661840564,-151.0,0.0002274,2]
[387224082,1758661840575,-151.0,0.0002274,2]
[387224084,1758661840586,-151.0,0.0002274,2]
[387224086,1758661840595,-151.0,0.0002274,2]
[387224088,1758661840604,-151.0,0.0002274,2]
[387224090,1758661840615,-151.0,0.0002274,2]
[387224092,1758661840624,-151.0,0.0002274,2]
[387224094,1758661840633,-151.0,0.0002274,2]
[387224096,1758661840642,-265.0,0.00022776,2]
[387224098,1758661840652,-160.0,0.00022794,2]
[387224100,1758661840662,-160.0,0.00023,2]
[387224102,1758661840672,-358.96,0.00023,2]
[387224104,1758661840681,-480.0,0.00023013,2]
[387224106,1758661840690,-488.62,0.00023013,2]
[387224108,1758661840700,-151.0,0.00023014,2]
[387224110,1758661840709,-562.0,0.00023014,2]
[387224112,1758661840718,-151.0,0.00023014,2]
[387224114,1758661840727,-151.0,0.00023014,2]
[387224116,1758661840737,-151.0,0.00023014,2]
[387224117,1758661840746,-151.0,0.00023014,2]
[387224120,1758661840756,-151.0,0.00023014,2]
[387224122,1758661840766,-158.11450114,0.00023014,2]
[387224123,1758661840775,-151.0,0.00023014,2]
[387224126,1758661840786,-247.61315356,0.00023014,2]
[387224128,1758661840797,-219.23198078,0.00023014,2]
[387224129,1758661840806,-151.0,0.00023014,2]
[387224131,1758661840815,-151.0,0.00023014,2]
[387224134,1758661840826,-151.0,0.00023014,2]
[387224135,1758661840835,-151.0,0.00023014,2]
[387224137,1758661840845,-151.38965468,0.00023014,2]
[387224139,1758661840854,-163.95393392,0.00023014,2]
[387224141,1758661840863,-410.0,0.00023054,2]
[387224143,1758661840872,-2719.70798358,0.00023116,2]
[387224145,1758661840882,-358.451,0.00023287,3]
[387224147,1758661840892,-480.0,0.00023287,2]
[387224149,1758661840902,-488.62,0.00023287,2]
[387224151,1758661840911,-1565.52,0.00023287,2]
[387224153,1758661840920,-198.0,0.00023288,2]
[387224155,1758661840930,-151.0,0.00023288,2]
[387224157,1758661840939,-198.0,0.00023288,2]
[387224159,1758661840949,-151.0,0.00023288,2]
[387224161,1758661840958,-198.0,0.00023288,2]
[387224163,1758661840968,-198.0,0.00023288,2]
[387224165,1758661840977,-198.0,0.00023288,2]
[387224167,1758661840987,-198.0,0.00023288,2]
[387224169,1758661840997,-260.0,0.00023342,2]
[387224171,1758661841006,-157.46813858,0.00023365,2]
[387224173,1758661841016,-480.0,0.00023561,2]
[387224175,1758661841025,-488.62,0.00023561,2]
[387224177,1758661841035,-198.0,0.00023562,2]
[387224179,1758661841044,-151.0,0.00023562,2]
[387224181,1758661841056,-358.96,0.00023806,2]
[387224183,1758661841065,-480.0,0.00023835,2]
[387224185,1758661841074,-488.62,0.00023835,2]
[387224187,1758661841083,-151.0,0.00023836,2]
[387224189,1758661841093,-360.0,0.0002389,2]
[387224191,1758661841103,-2000.0,0.000239,2]
[387224193,1758661841112,-127.56088696,0.000239,2]
[387224195,1758661841125,-325.64746722,0.000239,2]
[387224206,1758661841231,-168.0,0.00023931,2]
[387224208,1758661841241,-199.52253278,0.00024,3]
[387224426,1758661843411,-217.63219507,0.00024,3]
[387224428,1758661843421,-480.0,0.00024109,2]
[387224430,1758661843431,-488.62,0.00024109,2]
[387224432,1758661843440,-245.0,0.0002411,2]
[387224434,1758661843449,-2719.70798358,0.00024187,2]
[387224436,1758661843457,-500.0,0.00024224,2]
[387224438,1758661843466,-500.0,0.00024224,2]
[387224439,1758661843475,-212.91267766,0.00024224,2]
[387224440,1758661843484,-500.0,0.00024224,2]
[387224441,1758661843493,-500.0,0.00024224,2]
[387224442,1758661843502,-6388.85,0.00024225,2]
[387224443,1758661843511,-480.0,0.00024383,2]
[387224444,1758661843520,-488.62,0.00024383,2]
[387224445,1758661843529,-460.0,0.00024438,2]
[387224446,1758661843538,-4963.8081932,0.00024447,2]
[387224447,1758661843547,-168.0,0.00024477,2]
[387224448,1758661843556,-550.65,0.00024546,3]
[387224449,1758661843566,-168.0,0.00024626,2]
[387224450,1758661843576,-32609.77088786,0.0002465,2]
[387224452,1758661843587,-507.01293362,0.0002465,2]
[387224454,1758661843596,-200.0,0.00024657,2]
[387224456,1758661843606,-200.0,0.00024657,2]
[387224458,1758661843615,-200.0,0.00024657,2]
[387224460,1758661843625,-256.96146705,0.00024657,2]
[387224462,1758661843634,-480.0,0.00024657,2]
[387224464,1758661843643,-488.62,0.00024657,2]
[387224466,1758661843653,-380.0,0.00024658,2]
[387224467,1758661843662,-200.0,0.00024658,2]
[387224469,1758661843671,-151.0,0.00024658,2]
[387224471,1758661843680,-547.0,0.00024658,2]
[387224473,1758661843690,-358.96,0.00024709,2]
[387224475,1758661843699,-183.54,0.00024764,3]
[387224477,1758661843708,-16601.24126992,0.00024774,2]
[387224479,1758661843717,-2664.34,0.0002479,10]
[387224481,1758661843727,-1693.04016893,0.00024799,2]
[387224482,1758661843736,-2000.0,0.000248,2]
[387224485,1758661843745,-38635.354875,0.000248,2]
[387224486,1758661843754,-9658.83871875,0.00024889,2]
[387224488,1758661843764,-135223.742063,0.0002489,2]
[387224490,1758661843773,-36181.59281133,0.00024899,15]
[387224492,1758661843782,-2000.0,0.000249,2]
[387224494,1758661843791,-151.0,0.000249,7]
[387224496,1758661843801,-28490.21729931,0.000249,2]
[387224498,1758661843813,-494.3173247,0.000249,2]
[387224760,1758661846307,-160.0,0.00020179,2]
[387224762,1758661846317,-9435.26255496,0.000249,2]
[387224774,1758661846417,-1188.5212987,0.000249,2]
[387224776,1758661846428,-21479.91550488,0.000249,2]
[387224779,1758661846440,-667.36064083,0.000249,2]
[387224783,1758661846473,-1401.58568241,0.000249,2]
[387230710,1758662132148,180.243859,0.00027397,120]
[387230777,1758663032483,-300.0,0.00019175,2]
[387230779,1758663032493,-833.89765394,0.00019175,2]
[387230781,1758663032505,-366.10234606,0.00019175,2]
[387230783,1758663032515,-50000.0,0.00019176,2]
[387230785,1758663032525,-153.13388744,0.00019176,2]
[387230787,1758663032535,-500.0,0.00019176,2]
[387230789,1758663032545,-500.0,0.00019176,2]
[387230791,1758663032554,-500.0,0.00019176,2]
[387230793,1758663032564,-500.0,0.00019176,2]
[387230795,1758663032573,-500.0,0.00019176,2]
[387230797,1758663032582,-500.0,0.00019176,2]
[387230799,1758663032591,-500.0,0.00019176,2]
[387230801,1758663032600,-636.56319973,0.00019176,2]
[387230803,1758663032610,-500.0,0.00019176,2]
[387230805,1758663032619,-314.84932216,0.00019176,2]
[387230807,1758663032629,-500.0,0.00019176,2]
[387230809,1758663032638,-379.10023321,0.00019176,2]
[387230811,1758663032647,-157.0,0.00019176,2]
[387230813,1758663032656,-500.0,0.00019177,2]
[387230815,1758663032666,-500.0,0.00019177,2]
[387230817,1758663032675,-500.0,0.00019177,2]
[387230820,1758663032684,-419.88306006,0.00019177,2]
[387230822,1758663032694,-480.0,0.00019178,2]
[387230823,1758663032703,-480.0,0.00019178,2]
[387230826,1758663032712,-480.0,0.00019178,2]
[387230828,1758663032721,-480.0,0.00019178,2]
[387230830,1758663032731,-480.0,0.00019178,2]
[387230832,1758663032740,-480.0,0.00019178,2]
[387230834,1758663032749,-627.44259633,0.00019178,2]
[387230835,1758663032758,-480.0,0.00019178,2]
[387230838,1758663032769,-480.0,0.00019178,2]
[387230840,1758663032778,-151.69,0.00019178,2]
[387230842,1758663032787,-480.0,0.00019178,2]
[387230844,1758663032797,-480.0,0.00019178,2]
[387230846,1758663032806,-480.0,0.00019178,2]
[387230848,1758663032815,-480.0,0.00019178,2]
[387230849,1758663032824,-480.0,0.00019178,2]
[387230851,1758663032833,-480.0,0.00019178,2]
[387230853,1758663032845,-480.0,0.00019178,2]
[387230855,1758663032854,-480.0,0.00019178,2]
[387230857,1758663032864,-480.0,0.00019178,2]
[387230860,1758663032874,-480.0,0.00019178,2]
[387230862,1758663032883,-480.0,0.00019178,2]
[387230864,1758663032892,-480.0,0.00019178,2]
[387230866,1758663032901,-480.0,0.00019178,2]
[387230868,1758663032910,-480.0,0.00019178,2]
[387230869,1758663032920,-480.0,0.00019178,2]
[387230871,1758663032929,-480.0,0.00019178,2]
[387230873,1758663032938,-480.0,0.00019178,2]
[387230876,1758663032948,-398.86,0.00019178,2]
[387230878,1758663032957,-480.0,0.00019178,2]
[387230880,1758663032967,-480.0,0.00019178,2]
[387230882,1758663032977,-480.0,0.00019178,2]
[387230884,1758663032988,-480.0,0.00019178,2]
[387230886,1758663032997,-480.0,0.00019178,2]
[387230887,1758663033006,-273.30173689,0.00019178,2]
[387230889,1758663033015,-480.0,0.00019178,2]
[387230891,1758663033026,-483.09546132,0.00019178,2]
[387230893,1758663033036,-480.0,0.00019178,2]
[387230895,1758663033045,-500.0,0.00019178,2]
[387230898,1758663033055,-500.0,0.00019178,2]
[387230899,1758663033064,-500.0,0.00019178,2]
[387230901,1758663033074,-480.0,0.00019178,2]
[387230903,1758663033083,-480.0,0.00019178,2]
[387230906,1758663033092,-480.0,0.00019178,2]
[387230907,1758663033103,-480.0,0.00019178,2]
[387230910,1758663033112,-497.06219312,0.00019178,2]
[387230911,1758663033121,-480.0,0.00019178,2]
[387230913,1758663033131,-288.37843979,0.00019178,2]
[387230915,1758663033140,-480.0,0.00019178,2]
[387230916,1758663033149,-480.0,0.00019178,2]
[387230918,1758663033159,-480.0,0.00019178,2]
[387230920,1758663033169,-480.0,0.00019178,2]
[387230922,1758663033178,-480.0,0.00019178,2]
[387230923,1758663033188,-566.84457373,0.00019178,2]
[387230925,1758663033198,-480.0,0.00019178,2]
[387230927,1758663033208,-480.0,0.00019178,2]
[387230929,1758663033217,-480.0,0.00019178,2]
[387230930,1758663033231,-411.13999665,0.00019178,2]
[387230932,1758663033240,-197.41659076,0.00019178,2]
[387230934,1758663033250,-480.0,0.00019178,2]
[387230935,1758663033259,-482.74554229,0.00019178,2]
[387230937,1758663033270,-480.0,0.00019178,2]
[387230939,1758663033279,-480.0,0.00019178,2]
[387230940,1758663033288,-480.0,0.00019178,2]
[387230942,1758663033297,-480.0,0.00019178,2]
[387230944,1758663033306,-480.0,0.00019178,2]
[387230946,1758663033316,-480.0,0.00019178,2]
[387230947,1758663033325,-480.0,0.00019178,2]
[387230949,1758663033334,-480.0,0.00019178,2]
[387230951,1758663033343,-480.0,0.00019178,2]
[387230953,1758663033353,-480.0,0.00019178,2]
[387230954,1758663033362,-480.0,0.00019178,2]
[387230956,1758663033372,-480.0,0.00019178,2]
[387230958,1758663033381,-480.0,0.00019178,2]
[387230959,1758663033391,-480.0,0.00019178,2]
[387230961,1758663033400,-480.0,0.00019178,2]
[387230963,1758663033410,-480.0,0.00019178,2]
[387230965,1758663033420,-480.0,0.00019178,2]
[387230966,1758663033429,-480.0,0.00019178,2]
[387230968,1758663033438,-480.0,0.00019178,2]
[387230970,1758663033447,-480.0,0.00019178,2]
[387230971,1758663033456,-480.0,0.00019178,2]
[387230973,1758663033465,-480.0,0.00019178,2]
[387230975,1758663033475,-480.0,0.00019178,2]
[387230977,1758663033484,-480.0,0.00019178,2]
[387230978,1758663033493,-480.0,0.00019178,2]
[387230980,1758663033502,-480.0,0.00019178,2]
[387230982,1758663033511,-480.0,0.00019178,2]
[387230983,1758663033520,-480.0,0.00019178,2]
[387230985,1758663033529,-480.0,0.00019178,2]
[387230987,1758663033538,-480.0,0.00019178,2]
[387230989,1758663033548,-480.0,0.00019178,2]
[387230991,1758663033557,-480.0,0.00019178,2]
[387230992,1758663033566,-480.0,0.00019178,2]
[387230994,1758663033575,-480.0,0.00019178,2]
[387230996,1758663033584,-480.0,0.00019178,2]
[387230998,1758663033594,-480.0,0.00019178,2]
[387231000,1758663033603,-480.0,0.00019178,2]
[387231001,1758663033611,-480.0,0.00019178,2]
[387231003,1758663033620,-312.17887797,0.00019178,2]
[387231005,1758663033630,-480.0,0.00019178,2]
[387231007,1758663033638,-480.0,0.00019178,2]
[387231008,1758663033648,-441.31120154,0.00019178,2]
[387231010,1758663033657,-480.0,0.00019178,2]
[387231012,1758663033666,-480.0,0.00019178,2]
[387231014,1758663033676,-480.0,0.00019178,2]
[387231016,1758663033685,-480.0,0.00019178,2]
[387231017,1758663033695,-480.0,0.00019178,2]
[387231026,1758663033805,-480.0,0.00019178,2]
[387231028,1758663033815,-480.0,0.00019178,2]
[387231030,1758663033824,-480.0,0.00019178,2]
[387231032,1758663033834,-480.0,0.00019178,2]
[387231034,1758663033843,-480.0,0.00019178,2]
[387231035,1758663033853,-480.0,0.00019178,2]
[387231037,1758663033862,-498.89,0.00019178,2]
[387231039,1758663033872,-480.0,0.00019178,2]
[387231041,1758663033881,-480.0,0.00019178,2]
[387231043,1758663033891,-480.0,0.00019178,2]
[387231044,1758663033900,-538.4674504,0.00019178,2]
[387231046,1758663033909,-490.24431776,0.00019178,2]
[387231048,1758663033919,-480.0,0.00019178,2]
[387231050,1758663033929,-480.0,0.00019178,2]
[387231052,1758663033938,-480.0,0.00019178,2]
[387231054,1758663033948,-480.0,0.00019178,2]
[387231055,1758663033957,-480.0,0.00019178,2]
[387231057,1758663033967,-480.0,0.00019178,2]
[387231059,1758663033977,-480.0,0.00019178,2]
[387231061,1758663033990,-480.0,0.00019178,2]
[387231063,1758663034000,-480.0,0.00019178,2]
[387231064,1758663034009,-480.0,0.00019178,2]
[387231066,1758663034019,-480.0,0.00019178,2]
[387231068,1758663034029,-480.0,0.00019178,2]
[387231070,1758663034039,-480.0,0.00019178,2]
[387231072,1758663034048,-480.0,0.00019178,2]
[387231073,1758663034059,-480.0,0.00019178,2]
[387231075,1758663034070,-480.0,0.00019178,2]
[387231077,1758663034080,-480.0,0.00019178,2]
[387231079,1758663034090,-480.0,0.00019178,2]
[387231081,1758663034100,-480.0,0.00019178,2]
[387231083,1758663034110,-480.0,0.00019178,2]
[387231084,1758663034120,-480.0,0.00019178,2]
[387231086,1758663034130,-480.0,0.00019178,2]
[387231088,1758663034140,-480.0,0.00019178,2]
[387231090,1758663034150,-500.0,0.00019178,2]
[387231091,1758663034161,-480.0,0.00019451,2]
[387231093,1758663034171,-677.71,0.00019451,2]
[387231095,1758663034181,-480.0,0.00019451,2]
[387231097,1758663034191,-480.0,0.00019451,2]
[387231098,1758663034201,-480.0,0.00019451,2]
[387231100,1758663034211,-480.0,0.00019452,2]
[387231102,1758663034221,-480.0,0.00019452,2]
[387231104,1758663034231,-276.22923318,0.00019452,2]
[387231106,1758663034240,-480.0,0.00019452,2]
[387231107,1758663034250,-480.0,0.00019452,2]
[387231109,1758663034259,-480.0,0.00019452,2]
[387231111,1758663034268,-480.0,0.00019452,2]
[387231113,1758663034278,-480.0,0.00019452,2]
[387231114,1758663034288,-480.0,0.00019452,2]
[387231116,1758663034297,-480.0,0.00019452,2]
[387231118,1758663034306,-480.0,0.00019452,2]
[387231120,1758663034316,-480.0,0.00019452,2]
[387231122,1758663034325,-480.0,0.00019452,2]
[387231123,1758663034335,-480.0,0.00019452,2]
[387231125,1758663034344,-480.0,0.00019452,2]
[387231127,1758663034353,-480.0,0.00019452,2]
[387231129,1758663034363,-480.0,0.00019452,2]
[387231131,1758663034372,-480.0,0.00019452,2]
[387231132,1758663034381,-480.0,0.00019452,2]
[387231134,1758663034390,-480.0,0.00019452,2]